Cogmind - Beta 17 @@@ ROGUE MODE // 2026.07.13 @ 20:31:09 Player: Goose Result: Destroyed by G-34 Mercenary with Small Laser Performance ------------- Evolutions (1) 500 Regions Visited (2) 400 Robots Destroyed (6) 30 Value Destroyed (178) 178 Prototype IDs (0) 0 Alien Tech Used (0) 0 Bonus (0) 0 TOTAL SCORE: 1108 Bonus ------- None Cogmind --------- Core Integrity 0/400 Matter 264/300 Energy 100/100 System Corruption 0% Temperature Cool (6) Movement Core (700) Ox13 Location -9/Materials Parts ------- > --- POWER (1) -------- (None) > --- PROPULSION (2) --- (None) > --- UTILITY (4) ------ High-capacity Storage Unit Salvage Targeting Computer > --- WEAPON (2) ------- (None) > --- INVENTORY (20) --- (None) Peak State ------------ > --- POWER ------------ Ion Engine > --- PROPULSION ------- Light Treads Light Treads > --- UTILITY ---------- High-capacity Storage Unit Small Matter Pod Medium Matter Pod Salvage Targeting Computer > --- WEAPON ----------- Assault Rifle Light Assault Rifle > --- INVENTORY -------- Aluminum Leg Aluminum Leg Small Laser [Rating: 10] Favorites ----------- Power Ion Engine Engine Ion Engine Propulsion Light Treads Treads Light Treads Leg Aluminum Leg Utility Salvage Targeting Computer Storage High-capacity Storage Unit Processor Salvage Targeting Computer Weapon Light Assault Rifle Energy Gun Heavy EM Pulse Gun Ballistic Gun Light Assault Rifle Launcher Grenade Launcher Build | -11 -10 -9 ------- Run | Yrd Mat Mat Slots Evolved 2 | . . 2 Power . | . . . Propulsion . | . . . Utility 2 | . . 2 Weapon . | . . . Parts Attached 19 | 7 8 4 Power 3 | 1 2 . Engine 3 | 1 2 . Core . | . . . Reactor . | . . . Propulsion 4 | 2 . 2 Treads 2 | 2 . . Leg 2 | . . 2 Wheel . | . . . Hover . | . . . Flight . | . . . Utility 5 | 1 2 2 Device . | . . . Storage 4 | 1 1 2 Processor 1 | . 1 . Hackware . | . . . Protection . | . . . Artifact . | . . . Weapon 7 | 3 4 . Energy Gun 3 | 1 2 . Energy Cannon . | . . . Ballistic Gun 3 | 2 1 . Ballistic Cannon . | . . . Launcher 1 | . 1 . Special Weapon . | . . . Impact Weapon . | . . . Slashing Weapon . | . . . Piercing Weapon . | . . . Special Melee Weapon . | . . . Unidentified Prototypes . | . . . Parts Lost 11 | . 2 9 Power 2 | . 1 1 Propulsion 3 | . . 3 Utility 2 | . . 2 Weapon 4 | . 1 3 Highest Loss Streak 6 | . 2 6 To Critical Strikes . | . . . Average Backups 5 | 2 6 2 Power 1 | . 1 . Propulsion 1 | . 2 1 Utility . | . . . Weapon 1 | . 2 . Tool/Special . | . . . Unused Backups 1 | . 1 . Power . | . . . Propulsion 1 | . 1 . Utility . | . . . Weapon . | . . . Tool/Special . | . . . Average Slot Usage (%) 93 | . 97 80 Engine 12 | . 13 8 Treads 24 | . 27 14 Storage 17 | . 14 28 Processor 12 | . 12 11 Energy Gun 9 | . 11 3 Ballistic Gun 14 | . 15 11 Peak Build Rating 10 | 6 9 10 Average Rating 8 | 4 8 8 On Entrance 4 | . 6 8 Avg Prop Armor Cover (%) . | . . . Naked Turns . | . . . Heaviest Build 51 | 13 49 51 Greatest Support 40 | 40 40 40 Greatest Overweight (x) 4 | . 1 4 Average Overweight (x) . | . . 1 Largest Inventory Capacity 20 | 8 20 20 Average Capacity 16 | 6 16 20 Most Carried 9 | 4 9 3 Average Carried 5 | 2 6 1 Final Capacity 20 | 8 20 20 Final Carried 4 | 4 4 . Class Distribution -------------------- 100% | Mutant Dominant Class ---------------- Mutant | -10/Materials Mutant | -9/Materials Resources | -11 -10 -9 ----------- Run | Yrd Mat Mat Matter Collected 383 | 221 162 . Remotely . | . . . Salvage Created 182 | . 182 . Parts 8 | . 8 . Haulers Intercepted . | . . . Recyclers Shooed . | . . . Parts Field Recycled . | . . . Retrieved Matter . | . . . Parts Self-Destructed . | . . . Prevented . | . . . Parts Restored . | . . . Kills | -11 -10 -9 ------- Run | Yrd Mat Mat Combat Hostiles Destroyed 4 | . 4 . Guns 1 | . 1 . AOE 3 | . 3 . Classes Destroyed 2 | . 2 . Operator 2 | . 2 . Grunt 4 | . 4 . Best Kill Streak 3 | . 3 . Combat Bots Only 3 | . 3 . Max Kills in Single Turn 2 | . 2 . Gunslinging . | . . . Exploded 2 | . 2 . Melee . | . . . Uniques/NPCs Destroyed . | . . . Combat | -11 -10 -9 -------- Run | Yrd Mat Mat Hostile Shots Fired 179 | . 77 102 Missed 44 | . 21 23 Hits 135 | . 56 79 Projectile 135 | . 56 79 Critical Strikes 6 | . 5 1 Damage Taken 1833 | . 757 1076 Core 565 | . 158 407 Absorbed by Shields . | . . . Core Remaining (%) 68 | 100 36 . Volleys Fired 22 | . 16 6 Largest 2 | . 2 2 Hottest 65 | . 65 40 Shots Fired 41 | . 32 9 Gun 40 | . 31 9 Cannon . | . . . Launcher 1 | . 1 . Special . | . . . Kinetic 22 | . 16 6 Thermal 3 | . . 3 Explosive 1 | . 1 . Electromagnetic 15 | . 15 . Robot Hit Streak 8 | . 8 3 Robot Miss Streak 4 | . 4 3 Penetration Max . | . . . Secondary Targets . | . . . Shots Hit Robots 24 | . 20 4 Core Hits 13 | . 11 2 Critical Kills . | . . . Critical Parts Destroyed . | . . . Critical Strikes 1 | . 1 . Corrupt 1 | . 1 . Melee Attacks . | . . . Impact . | . . . Slashing . | . . . Piercing . | . . . Sneak Attacks . | . . . Combat Hostiles . | . . . Follow-up Attacks . | . . . Damage Inflicted 430 | . 385 45 Guns 297 | . 256 41 Cannons . | . . . Explosions 111 | . 111 . Melee . | . . . Ramming 22 | . 18 4 Kinetic 124 | . 93 31 Thermal 50 | . 40 10 Explosive 71 | . 71 . Electromagnetic 163 | . 163 . Impact . | . . . Slashing . | . . . Piercing . | . . . Highest Corruption 4 | . 4 . Average Corruption 3 | . 3 . Corruption Purged . | . . . Corruption Blocked . | . . . Effects 3 | . 3 . Message Errors 2 | . 2 . Alerts 1 | . 1 . Overload Shots . | . . . Overflow Damage . | . . . Projectiles . | . . . Explosions . | . . . Melee . | . . . Knockbacks . | . . . Impact . | . . . Kinetic . | . . . Secondary . | . . . Self-Inflicted Damage 3 | . 3 . Shots 1 | . 1 . Rammed 5 | . 3 2 Targets Rammed 6 | . 3 3 Kicked 1 | . . 1 Crushed . | . . . Highest Temperature 54 | . 54 18 Average Temperature 17 | . 18 6 Received Heat Transfer 1053 | . 498 555 Siege Activations . | . . . Martial Activations . | . . . Shielding Activations . | . . . Robots Disrupted . | . . . Combat Hostiles . | . . . Robots Corrupted . | . . . Combat Hostiles . | . . . Parts Fried 1 | . 1 . Impact Corruptions . | . . . Robots Melted . | . . . Combat Hostiles . | . . . Parts Melted . | . . . Heat Transferred 25 | . . 25 Parts Sabotaged . | . . . Parts Stolen . | . . . Parts Stripped . | . . . Power Chain Reactions 1 | . 1 . Alert | -11 -10 -9 ------- Run | Yrd Mat Mat Maximum Alert Level . | . . . Low Security (%) 100 | 100 100 100 Level 1 . | . . . Level 2 . | . . . Level 3 . | . . . Level 4 . | . . . Level 5 . | . . . High Security . | . . . Max Security . | . . . Peak Influence 87 | . 87 15 Initial . | . . . Average 11 | . 15 . Influence Increases 171 | . 156 15 Destroy 0b10 Robot/C 80 | . 80 . Destroy 0b10 Robot/NC 10 | . 10 . Destroy Leader 20 | . 20 . Successful Hack 4 | . 4 . Disable Machine 15 | . 15 . Destroy Structure 12 | . 12 . Lose Combat Pursuer 30 | . 15 15 Influence Decreases 166 | . 156 10 Time Decay 166 | . 156 10 Squads Dispatched 2 | . 2 . Investigation . | . . . Extermination . | . . . Reinforcement 2 | . 2 . Assault . | . . . Garrison . | . . . Intercept . | . . . Searches Triggered . | . . . Construction Impeded . | . . . Haulers Reinforced . | . . . Active Scanning Responses . | . . . Cargo Convoy Interrupts . | . . . Stealth | -11 -10 -9 --------- Run | Yrd Mat Mat Distress Signals 2 | . 2 . Communications Jammed . | . . . Distress Signals . | . . . Times Spotted 20 | . 11 9 Peak Tracking Total 6 | . 3 6 Tactical Retreats 2 | . 1 1 Traps | -11 -10 -9 ------- Run | Yrd Mat Mat Traps Triggered 5 | . 5 . Indirectly . | . . . Trap Hack Attempts . | . . . Triggered . | . . . Disarmed . | . . . Reprogrammed . | . . . Reused . | . . . Traps Extracted . | . . . Installed . | . . . Triggered . | . . . Machines | -11 -10 -9 ---------- Run | Yrd Mat Mat Machines Disabled 1 | . 1 . Max in Single Turn 1 | . 1 . Machines Repaired . | . . . Machines Dismantled . | . . . Machines Sabotaged . | . . . Overloaded Fab Kills . | . . . Hacking | -11 -10 -9 --------- Run | Yrd Mat Mat Machines Accessed 4 | . 4 . Terminals 2 | . 2 . Fabricators . | . . . Repair Stations . | . . . Recycling Units 2 | . 2 . Scanalyzers . | . . . Garrison Access . | . . . Total Hacks 11 | . 11 . Successful 7 | . 7 . Failed 4 | . 4 . Catastrophic . | . . . Database Lockouts . | . . . Manual . | . . . Terminals 5 | . 5 . Fabricators . | . . . Repair Stations . | . . . Recycling Units 6 | . 6 . Scanalyzers . | . . . Garrison Access . | . . . Terminal Hacks 3 | . 3 . Record 2 | . 2 . Alert Level 1 | . 1 . Fabricator Hacks . | . . . Repair Station Hacks . | . . . Recycling Unit Hacks 4 | . 4 . Recycle Component 2 | . 2 . Report Inventory 2 | . 2 . Scanalyzer . | . . . Garrison Access Hacks . | . . . Unauthorized Hacks . | . . . Terminals . | . . . Fabricators . | . . . Repair Stations . | . . . Recycling Units . | . . . Scanalyzers . | . . . Garrison Access . | . . . Data Cores Recovered . | . . . Used . | . . . Hacking Detections 3 | . 3 . Full Trace Events 2 | . 2 . Feedback Events . | . . . Feedback Blocked . | . . . Robot Schematics Acquired . | . . . Robots Built . | . . . Authchips . | . . . Time . | . . . Total Robot Build Rating . | . . . Part Schematics Acquired . | . . . Parts Built . | . . . Authchips . | . . . Time . | . . . Total Part Build Rating . | . . . Part Studies Acquired . | . . . Parts Repaired . | . . . Time . | . . . Parts Recycled 2 | . 2 . Recycled Matter . | . . . Retrieved Matter . | . . . Retrieved Components . | . . . Parts Scanalyzed . | . . . Part Schematics Acquired . | . . . Parts Damaged . | . . . Bothacking | -11 -10 -9 ------------ Run | Yrd Mat Mat Used RIF Installer . | . . . Robots Hacked . | . . . Non-combat . | . . . Combat . | . . . Robot Hacks Applied . | . . . Relay Couplers Released . | . . . Fabnet Peak Effective % . | . . . Robots Rewired . | . . . Allies Hacked . | . . . Hacks Repelled . | . . . Allies | -11 -10 -9 -------- Run | Yrd Mat Mat Total Allies . | . . . Largest Group . | . . . Highest-Rated Group . | . . . Highest-Rated Ally . | . . . Total Orders . | . . . Ally Attacks . | . . . Total Damage . | . . . Kills . | . . . Allies Corrupted . | . . . Allies Melted . | . . . Intel | -11 -10 -9 ------- Run | Yrd Mat Mat Active Infowar (turns) . | . . . Robot Analysis Total . | . . . Derelict Logs Recovered . | . . . Drone Launches . | . . . Drone Recoveries . | . . . Exploration | -11 -10 -9 ------------- Run | Yrd Mat Mat Turns Passed 1064 | 83 732 249 Spaces Moved 437 | 47 309 81 Core 4 | 4 . . Treads 418 | 43 309 66 Legs 15 | . . 15 Wheels . | . . . Hover . | . . . Flight . | . . . Fastest Speed 50 | 50 160 240 Average Speed 212 | 150 209 260 Slowest Speed 400 | 160 240 400 Overloaded Moves . | . . . Propulsion Burnouts . | . . . Robots Hopped . | . . . Potential Cave-ins . | . . . Cave-ins Triggered . | . . . Exploration Rate (%) 19 | 4 42 12 Regions Visited 2 Branch Regions . Pre-discovered Areas . | . . . Known Exits Taken . | . . . Unknown Exits Taken 2 | 1 1 . Scrap Searched . | . . . Spaces Dug . | . . . Terrain Destroyed 12 | . 12 . Melee . | . . . Projectile . | . . . AOE 12 | . 12 . Terrain Rammed . | . . . Walls Destroyed . | . . . Machines Disabled . | . . . Actions | -11 -10 -9 --------- Run | Yrd Mat Mat Total 515 | 56 363 96 Wait 3 | . 3 . Move 435 | 46 308 81 Hop . | . . . Pick Up 12 | 3 9 . Fast Attach 13 | 6 6 1 Attach 11 | . 7 4 Detach 5 | . 5 . Swap 1 | 1 . . Drop 7 | . 6 1 Fire 22 | . 16 6 Melee . | . . . Ram 2 | . . 2 Kick 1 | . . 1 Crush 3 | . 3 . Escape Stasis . | . . . Rewire . | . . . Trap . | . . . Miscellaneous . | . . . Route ------- -11/Scrapyard -10/Materials -9/Materials History --------- Turn | Location | Event 33 | -11/Scrapyard | Discovered new exit (range 16) 84 | -11/Scrapyard | Entered Materials 85 | -10/Materials | Met a group of wandering Federalists 326 | -10/Materials | Build established: Mutant 345 | -10/Materials | Discovered new exit (range 10) 771 | -10/Materials | Core integrity fell below 50% 816 | -10/Materials | Entered another Materials area 816 | -9/Materials | Evolved 2 slots: Utility x2 990 | -9/Materials | Lost 3 parts (1n2w) 1057 | -9/Materials | Core integrity fell below 50% 1062 | -9/Materials | Core integrity fell below 20% 1065 | -9/Materials | Destroyed by G-34 Mercenary with Small Laser Last Messages --------------- Lgt. Assault Rifle destroyed. M-13 Machinist repairs G-34 Mercenary. Lgt. Treads destroyed. M-13 Machinist repairs G-47 Trooper. Dropped Lgt. Treads. Ion Engine destroyed. R-06 Scavenger collects Lgt. Treads. Sml. Laser destroyed. Sml. Matter Pod destroyed. U-05 Engineer builds a Door. Aluminum Leg destroyed. Med. Matter Pod destroyed. M-13 Machinist repairs R-06 Scavenger. M-13 Machinist repairs R-06 Scavenger Tractor Beam. Critical hit (Burn: +37). Kicked K-01 Serf. Aluminum Leg destroyed. Slammed into K-01 Serf. Slammed into G-34 Mercenary. Map ----- +----------------------------------------------------+ | ????????????????????????????????????????? | | ????????????????????????????????????????? | | ????????????????????????????????????????? | | ????????????????????????????????????????? | | ????????????????????????????????????????? | | ???????????????????????? ?????????????? | | ???????????????????????? #????????????? | | ???????????????????????? #????????????? | | ???????????????????????? #????????????? | | ???????????????????????# #????????????? | | ???????????????????????+ a#????????????? | | ???????????????????????# #????????????? | | ???????????????????????# g #????????????? | | ???????????????????????# #????????????? | | ???????????????????###?# #????????????? | | ???????????????????# #?# g#????????????? | | ???????????????????# #?# #????????????? | | ???????????????????# #?#g #????????????? | | ???????????????????# #?# #????????????? | | ?????????????#######+###t #????????????? | | ?????????????# ! / #????????????? | | ?????????????# ##Y##????????????? | | ?????????????# ## #?????????????? | | ?????##+###### ## #?????????????? | | ?????# / ## #?????????????? | | ?????# ###### ##@#?????????????? | | ?????# #????# /gg/ ????????????? | | ?????# #????# ## # ??????????? | | ????## ##???########+### # ????????? | | ????# ########## ## #?#####???????? | | ????# ## #?????????????? | | ????# ^ ## #?????????????? | | ????# ########## ## #?????????????? | | ###### ##?????????? ### #?????????????? | | # #??????????? ???+??????????????? | | / #??????????? ??????????????????? | | """ # #???????????????????????????????? | | """ # #???????????????????????????????? | | """?# #???????????????????????????????? | | ?# #???????????????????????????????? | | ??# #???????????????????????????????? | | ??# #???????????????????????????????? | | ##???# #???????????????????????????????? | | ###### #######?????????????????????????? | | ??????????????????? | | T??????????????????? | | ###################?????????????????????? | | ????????????????????????????????????????? | | ????????????????????????????????????????? | | ????????????????????????????????????????? | +----------------------------------------------------+ Best States ------------- Heat Dissipation 28 Energy Generation 10 Energy Capacity 250 Matter Stores 300 Matter Capacity 450 Sight Range 16 Terrain Scan Density 10 Evasion (%) 40 Recoil Reduction 2 Salvage Targeting 1 Item Schematics ----------------- None Robot Schematics ------------------ None Fabricated ------------ Nothing Repaired ---------- Nothing Studied --------- None Alien Tech Used ----------------- None Achievements -------------- None Challenges ------------ None Game ------ Seed AntisysMachineMonowheel Manual? 0 Play Time 00:15:21 Cumulative 3.2 hours Start 2026.07.13 @ 20:16:16 End 2026.07.13 @ 20:31:09 Sessions 1 Manual Loads 0 Difficulty Rogue Special Mode None Game No. 6 Rogue 5 Adventurer 1 Explorer 0 Win Type - Total 0 Types 0/0/0/0/0/0/0/0/0/0 Lore% 2 Gallery% 9 Achievement% 9 Wizard Run 0 Options --------- Layout 1 ASCII 0 Keyboard 0 Movement Mouse Keybinds 0 Fullscreen 1 Font 32/Terminus Map View 50x35 Zoom Use 0% Tactical HUD 0 Map Filters NONE Filters NONE Steam 1 RUN: 5f964280-a128-4940-bc59-163f76cbba9b